Cogmind - Beta 10.1 @@@ ROGUE MODE // 2020.10.13 @ 18:13:11 Player: Dusanh Result: Destroyed by as-43129 with Assembled Heavy Rifle Performance ------------- Evolutions (0) 0 Regions Visited (3) 600 Robots Destroyed (22) 110 Value Destroyed (442) 442 Prototype IDs (23) 460 Alien Tech Used (0) 0 Bonus (-141) -141 TOTAL SCORE: 1471 Bonus ------- Follower Combat Kills 33 Aligned with FarCom 300 Friendly Fire -474 Cogmind --------- Core Integrity 0/250 Matter 284/300 Energy 219/265 System Corruption 3% Temperature Cool (0) Movement Treading (160) Location -10/Exiles Parts ------- > --- POWER (1) -------- Improved Ion Engine > --- PROPULSION (2) --- Light Treads Light Treads > --- UTILITY (2) ------ Large Storage Unit Light Armor Plating > --- WEAPON (2) ------- Latent Energy Streamer Longsword +1 > --- INVENTORY (10) --- Ion Engine Large Storage Unit Lightpack 2.0 Light Armor Plating Light Armor Plating Heavy Assault Rifle Heavy Assault Rifle EMP Blaster Grenade Launcher Peak State ------------ > --- POWER ------------ Improved Ion Engine > --- PROPULSION ------- Light Treads Light Treads > --- UTILITY ---------- Large Storage Unit Light Armor Plating > --- WEAPON ----------- Latent Energy Streamer Longsword +1 > --- INVENTORY -------- Ion Engine Large Storage Unit Lightpack 2.0 Light Armor Plating Light Armor Plating Heavy Assault Rifle Heavy Assault Rifle EMP Blaster Grenade Launcher [Rating: 27] Favorites ----------- Power Ion Engine Engine Ion Engine Propulsion Light Treads Treads Light Treads Wheel Wheel Hover Unit Hover Unit Utility Large Storage Unit Storage Large Storage Unit Protection Light Armor Plating Weapon Heavy Assault Rifle Energy Gun EM Pulse Gun Energy Cannon Latent Energy Streamer Ballistic Gun Heavy Assault Rifle Impact Weapon Mace Slashing Weapon Longsword +1 Build | -11 -10 -10 -10 ------- Run | Scr Mat Min Exi Slots Evolved . | . . . . Power . | . . . . Propulsion . | . . . . Utility . | . . . . Weapon . | . . . . Parts Attached 37 | 5 22 7 3 Power 6 | 1 3 1 1 Engine 6 | 1 3 1 1 Core . | . . . . Reactor . | . . . . Propulsion 9 | 2 5 2 . Treads 6 | 2 2 2 . Leg . | . . . . Wheel 2 | . 2 . . Hover 1 | . 1 . . Flight . | . . . . Utility 8 | 1 6 1 . Device . | . . . . Storage 3 | 1 2 . . Processor . | . . . . Hackware . | . . . . Protection 5 | . 4 1 . Artifact . | . . . . Weapon 14 | 1 8 3 2 Energy Gun 3 | 1 2 . . Energy Cannon 1 | . . . 1 Ballistic Gun 7 | . 5 2 . Ballistic Cannon . | . . . . Launcher . | . . . . Special Weapon . | . . . . Impact Weapon 2 | . 1 1 . Slashing Weapon 1 | . . . 1 Piercing Weapon . | . . . . Special Melee Weapon . | . . . . Unidentified Prototypes . | . . . . Parts Lost 8 | . 5 3 . Power 2 | . 1 1 . Propulsion 2 | . 1 1 . Utility 1 | . . 1 . Weapon 3 | . 3 . . Highest Loss Streak 3 | . 3 2 . Average Slot Usage (%) 92 | . 90 88 99 Engine 12 | . 12 12 14 Treads 20 | . 24 10 28 Wheel 4 | . 2 9 . Storage 14 | . 14 14 14 Protection 12 | . 9 13 14 Energy Gun 4 | . 11 . . Energy Cannon 1 | . . . 3 Ballistic Gun 20 | . 14 28 19 Slashing Weapon 1 | . . . 3 Naked Turns . | . . . . Heaviest Build 39 | 9 28 30 39 Greatest Support 40 | 40 40 40 40 Greatest Overweight (x) 2 | 2 2 2 . Average Overweight (x) . | . . 1 . Largest Inventory Capacity 10 | 6 10 10 10 Average Capacity 9 | 5 8 10 10 Most Carried 10 | 5 10 10 10 Average Carried 8 | 2 7 9 9 Final Capacity 10 | 6 10 10 10 Final Carried 10 | 5 10 10 10 Class Distribution -------------------- 68% | Mutant 31% | Scavenger-Mutant Dominant Class ---------------- Mutant | -10/Materials Mutant | -10/Mines Scavenger-Mutant | -10/Exiles Resources | -11 -10 -10 -10 ----------- Run | Scr Mat Min Exi Matter Collected 721 | 198 275 234 14 Remotely . | . . . . Salvage Created 683 | . 494 103 86 Parts 33 | . 30 3 . Haulers Intercepted . | . . . . Recyclers Shooed . | . . . . Parts Field Recycled . | . . . . Retrieved Matter . | . . . . Parts Self-Destructed . | . . . . Prevented . | . . . . Kills | -11 -10 -10 -10 ------- Run | Scr Mat Min Exi Combat Hostiles Destroyed 20 | . 12 3 5 Guns 12 | . 9 3 . AOE 7 | . 3 . 4 Classes Destroyed 6 | . 4 1 1 Recycler 1 | . 1 . . Watcher 1 | . 1 . . Swarmer 6 | . 6 . . Grunt 7 | . 6 1 . Sentry 1 | . . 1 . Assembled 5 | . . . 5 Best Kill Streak 5 | . 5 1 5 Combat Bots Only 5 | . 4 1 5 Max Kills in Single Turn 4 | . 2 1 4 Gunslinging . | . . . . Exploded 4 | . 2 . 4 Melee . | . . . . Uniques/NPCs Destroyed 1 | . . 1 . YI-UF0 (-10/Mines) Combat | -11 -10 -10 -10 -------- Run | Scr Mat Min Exi Damage Taken 1587 | . 763 382 442 Core 265 | . 125 39 101 Absorbed by Shields . | . . . . Core Remaining (%) 100 | 100 . . . Volleys Fired 50 | . 31 18 1 Largest 2 | . 2 2 1 Hottest 60 | . 60 46 60 Shots Fired 96 | . 59 36 1 Gun 95 | . 59 36 . Cannon 1 | . . . 1 Launcher . | . . . . Special . | . . . . Kinetic 69 | . 33 36 . Thermal 7 | . 7 . . Explosive . | . . . . Electromagnetic 20 | . 19 . 1 Robot Hit Streak 7 | . 7 6 5 Robot Miss Streak 6 | . 6 3 . Penetration Max . | . . . . Secondary Targets 2 | . 2 . . Max Gunslinging Chain 1 | . 1 . . Shots Hit Robots 67 | . 36 22 9 Core Hits 32 | . 20 7 5 Critical Hits 1 | . . . 1 Critical Kills . | . . . . Critical Parts Destroyed . | . . . . Melee Attacks 8 | . . . 8 Impact . | . . . . Slashing 8 | . . . 8 Piercing . | . . . . Sneak Attacks 1 | . . . 1 Combat Hostiles . | . . . . Follow-up Attacks . | . . . . Damage Inflicted 2056 | . 740 335 981 Guns 768 | . 433 335 . Cannons 7 | . . . 7 Explosions 813 | . 307 . 506 Melee 468 | . . . 468 Ramming . | . . . . Kinetic 570 | . 235 335 . Thermal 264 | . 264 . . Explosive . | . . . . Electromagnetic 754 | . 241 . 513 Impact . | . . . . Slashing 468 | . . . 468 Piercing . | . . . . Highest Corruption 3 | . . . 3 Average Corruption 3 | . . . 3 Corruption Purged . | . . . . Effects 1 | . . . 1 Message Errors 1 | . . . 1 Overload Shots . | . . . . Overflow Damage 148 | . 98 . 50 Projectiles . | . . . . Explosions 148 | . 98 . 50 Melee . | . . . . Knockbacks . | . . . . Impact . | . . . . Kinetic . | . . . . Secondary . | . . . . Self-Inflicted Damage 224 | . 132 . 92 Shots 4 | . 3 . 1 Rammed . | . . . . Targets Rammed . | . . . . Kicked . | . . . . Crushed . | . . . . Highest Temperature 58 | . 51 36 58 Average Temperature 16 | . 15 17 28 Received Heat Transfer 435 | . 234 141 60 Siege Activations . | . . . . Robots Corrupted 1 | . . . 1 Combat Hostiles 1 | . . . 1 Parts Fried . | . . . . Impact Corruptions . | . . . . Robots Melted . | . . . . Combat Hostiles . | . . . . Parts Melted . | . . . . Heat Transferred 275 | . 275 . . Parts Sabotaged . | . . . . Parts Stolen . | . . . . Parts Stripped . | . . . . Power Chain Reactions 3 | . 3 . . Missiles Intercepted . | . . . . Latent Energy Used 200 | . . . 200 LE Corruption 3 | . . . 3 Alert | -11 -10 -10 -10 ------- Run | Scr Mat Min Exi Peak Influence 213 | . 213 57 . Initial 24 | . . 24 . Average 61 | . 83 44 . Maximum Alert Level 1 | . 1 . . Low Security (%) 96 | 100 93 100 . Level 1 3 | . 6 . . Level 2 . | . . . . Level 3 . | . . . . Level 4 . | . . . . Level 5 . | . . . . High Security . | . . . . Max Security . | . . . . Squads Dispatched 2 | . 2 . . Investigation . | . . . . Extermination . | . . . . Reinforcement 2 | . 2 . . Assault . | . . . . Garrison . | . . . . Intercept . | . . . . Construction Impeded . | . . . . Haulers Reinforced . | . . . . Stealth | -11 -10 -10 -10 --------- Run | Scr Mat Min Exi Distress Signals . | . . . . Communications Jammed . | . . . . Distress Signals . | . . . . Times Spotted 32 | . 18 6 8 Peak Tracking Total 9 | . 4 2 9 Tactical Retreats 1 | . . 1 . Traps | -11 -10 -10 -10 ------- Run | Scr Mat Min Exi Traps Triggered 2 | . 2 . . Indirectly . | . . . . Trap Hack Attempts . | . . . . Triggered . | . . . . Disarmed . | . . . . Reprogrammed . | . . . . Reused . | . . . . Traps Extracted . | . . . . Installed . | . . . . Triggered . | . . . . Machines | -11 -10 -10 -10 ---------- Run | Scr Mat Min Exi Machines Disabled 7 | . 5 . 2 Max in Single Turn 3 | . 3 . 2 Machines Sabotaged . | . . . . Garrisons Compromised . | . . . . Overloaded Fab Kills . | . . . . Fab Network Shutdowns . | . . . . Hacking | -11 -10 -10 -10 --------- Run | Scr Mat Min Exi Machines Accessed 5 | . 3 . 2 Terminals 3 | . 3 . . Fabricators . | . . . . Repair Stations . | . . . . Recycling Units . | . . . . Scanalyzers . | . . . . Garrison Access . | . . . . Total Hacks 17 | . 12 . 5 Successful 13 | . 8 . 5 Failed 4 | . 4 . . Catastrophic 1 | . 1 . . Database Lockouts . | . . . . Manual 12 | . 11 . 1 Terminals 12 | . 12 . . Fabricators . | . . . . Repair Stations . | . . . . Recycling Units . | . . . . Scanalyzers . | . . . . Garrison Access . | . . . . Terminal Hacks 8 | . 3 . 5 Record 4 | . . . 4 Unreport Threat 1 | . 1 . . Hauler Manifests 1 | . 1 . . Zone Layout 1 | . 1 . . EX-Prototype ID Bank 1 | . . . 1 Fabricator Hacks . | . . . . Repair Station Hacks . | . . . . Recycling Unit Hacks . | . . . . Scanalyzer . | . . . . Garrison Access Hacks . | . . . . Unauthorized Hacks 5 | . 5 . . Terminals 5 | . 5 . . Track 3 | . 3 . . Botnet 2 | . 2 . . Fabricators . | . . . . Repair Stations . | . . . . Recycling Units . | . . . . Scanalyzers . | . . . . Garrison Access . | . . . . Data Cores Recovered . | . . . . Used . | . . . . Hacking Detections 3 | . 3 . . Full Trace Events . | . . . . Feedback Events . | . . . . Feedback Blocked . | . . . . Robot Schematics Acquired . | . . . . Robots Built . | . . . . Matter . | . . . . Time . | . . . . Total Robot Build Rating . | . . . . Part Schematics Acquired . | . . . . Parts Built . | . . . . Matter . | . . . . Time . | . . . . Total Part Build Rating . | . . . . Parts Repaired . | . . . . Time . | . . . . Parts Recycled . | . . . . Recycled Matter . | . . . . Retrieved Matter . | . . . . Retrieved Components . | . . . . Parts Scanalyzed . | . . . . Part Schematics Acquired . | . . . . Parts Damaged . | . . . . Bothacking | -11 -10 -10 -10 ------------ Run | Scr Mat Min Exi Used RIF Installer . | . . . . Robots Hacked . | . . . . Non-combat . | . . . . Combat . | . . . . Robot Hacks Applied . | . . . . Relay Couplers Released . | . . . . Robots Rewired . | . . . . Allies Hacked . | . . . . Hacks Repelled . | . . . . Allies | -11 -10 -10 -10 -------- Run | Scr Mat Min Exi Total Allies 1 | . . 1 . Largest Group 1 | . . 1 . Highest-Rated Group 31 | . . 31 . Highest-Rated Ally 31 | . . 31 . Total Orders . | . . . . Ally Attacks 4 | . . 4 . Total Damage 86 | . . 86 . Kills 1 | . . 1 . Allies Corrupted . | . . . . Allies Melted . | . . . . Intel | -11 -10 -10 -10 ------- Run | Scr Mat Min Exi Robot Analysis Total . | . . . . Derelict Logs Recovered 1 | . . 1 . Drone Launches . | . . . . Drone Recoveries . | . . . . Exploration | -11 -10 -10 -10 ------------- Run | Scr Mat Min Exi Turns Passed 2270 | 69 808 788 605 Spaces Moved 1357 | 38 375 582 362 Core 5 | 5 . . . Treads 871 | 33 299 177 362 Legs . | . . . . Wheels 481 | . 76 405 . Hover . | . . . . Flight . | . . . . Fastest Speed 50 | 50 90 100 160 Average Speed 138 | 152 146 118 160 Slowest Speed 180 | 160 180 180 160 Overloaded Moves . | . . . . Propulsion Burnouts . | . . . . Robots Hopped . | . . . . Cave-ins Triggered . | . . . . Exploration Rate (%) 60 | 4 66 99 71 Regions Visited 3 Branch Regions 2 Pre-discovered Areas 2 | . . 1 1 Known Exits Taken . | . . . . Unknown Exits Taken 3 | 1 1 1 . Scrap Searched 1 | . . 1 . Spaces Dug . | . . . . Terrain Destroyed 42 | . 23 . 19 Melee . | . . . . Projectile . | . . . . AOE 42 | . 23 . 19 Terrain Rammed . | . . . . Walls Destroyed . | . . . . Machines Disabled . | . . . . Actions | -11 -10 -10 -10 --------- Run | Scr Mat Min Exi Total 1640 | 47 568 646 379 Wait 154 | . 124 30 . Move 1354 | 37 374 581 362 Hop . | . . . . Pick Up 21 | 5 10 5 1 Fast Attach 19 | 5 10 2 2 Attach 7 | . 5 2 . Detach 2 | . 2 . . Swap 11 | . 7 3 1 Drop 14 | . 5 5 4 Fire 50 | . 31 18 1 Melee 8 | . . . 8 Ram . | . . . . Kick . | . . . . Crush . | . . . . Escape Stasis . | . . . . Rewire . | . . . . Trap . | . . . . Miscellaneous . | . . . . Route ------- -11/Scrapyard -10/Materials (discovered 2 exits: [Mat] / [*Min]) -10/Mines (discovered 3 exits: [*Mat x2] / *Exi) -10/Exiles (discovered 1 exit: [*Min]) History --------- Turn | Location | Event 17 | -11/Scrapyard | Discovered new exit (range 15) 70 | -11/Scrapyard | Entered Materials 300 | -10/Materials | Build established: Mutant 496 | -10/Materials | Discovered new exit (range 9) 802 | -10/Materials | Lost 3 parts (1p2w) 806 | -10/Materials | Discovered new exit (range 15) 878 | -10/Materials | Entered Mines 883 | -10/Mines | Core integrity fell below 50% 1000 | -10/Mines | Found a hidden stash of uninstalled traps 1007 | -10/Mines | YI-UF0 nonchalantly dropped a Grenade Launcher on the ground 1119 | -10/Mines | Discovered new exit (range 12) 1144 | -10/Mines | Destroyed YI-UF0 1156 | -10/Mines | Received a Mining Laser from a helpful Derelict 1213 | -10/Mines | Discovered new exit (range 7) 1259 | -10/Mines | Deemed a non-threat by the Exiles lab entrance 1660 | -10/Mines | Discovered new exit (range 5) 1666 | -10/Mines | Entered Exiles 1675 | -10/Exiles | Build established: Scavenger-Mutant 1705 | -10/Exiles | Met 8R-AWN 1732 | -10/Exiles | Met EX-HEX 1806 | -10/Exiles | Met EX-DEC 1844 | -10/Exiles | Learned location of Zion (-7) 1918 | -10/Exiles | Discovered new exit (range 12) 2022 | -10/Exiles | Met EX-BIN 2047 | -10/Exiles | Aligned with FarCom system 2049 | -10/Exiles | Given EX-Vault access code 2086 | -10/Exiles | Opened EX-Vault 2099 | -10/Exiles | Found Lightpack 2.0 2106 | -10/Exiles | Found Longsword +1 2109 | -10/Exiles | Found Latent Energy Streamer 2141 | -10/Exiles | Warned to stay clear of 0b10 Research branches 2248 | -10/Exiles | Attacked by the Exiles 2258 | -10/Exiles | Core integrity fell below 20% 2271 | -10/Exiles | Destroyed by as-43129 with Assembled Heavy Rifle Last Messages --------------- 02258_ Destroyed Asb. Hover Unit. 02258_ Destroyed Asb. Blade. 02258_ as-59643 destroyed. 02258_ Machine disabled. 02259_ as-43222 system terminally corrupted. 02260_ Penetrated by HV Slug. 02260_ HV Slug penetrates Earth. 02260_ Penetrated by HV Slug. 02260_ HV Slug penetrates Earth. 02262_ 8R-AWN Prototype Ballistic Gun severed. 02264_ Penetrated by HV Slug. 02264_ HV Slug penetrates Earth. 02266_ Acquired 14 matter. 02267_ Penetrated by HV Slug. 02267_ Critical hit. 02267_ HV Slug penetrates Earth. 02268_ Destroyed Prototype Protection. 02269_ VZF8O=JS T,ZH I K